Workbook

Sheet Feuille de saisie
F2: Résultats des tests de condition physique - Rameurs J12 à J14
B6: LIBOURNE | F6: Club d'aviron
B8: ="Nombre de sportifs : "&COUNTA(totalsexe)&" dont "&COUNTIF(totalsexe,"F")&" femmes et "&COUNTIF(totalsexe,"H")&" hommes" -> Nombre de sportifs : 141 dont 66 femmes et 75 hommes
B9: NOM Prénom | C9: Club | D9: Catégorie | E9: Sexe | F9: Date de naissance | G9: Activité 1 | H9: Activité 2 | W9: Activité 3 | Y9: =G9 -> Activité 1 | Z9: =H9 -> Activité 2 | AA9: =W9 -> Activité 3
G10: Course à Pied | H10: Atelier N°1 | I10: Atelier N°2 | J10: Atelier N°3 | K10: Atelier N°4 | L10: Atelier N°5 | M10: Atelier N°6 | N10: Atelier N°7 | O10: Atelier N°8 | P10: Atelier N°9 | Q10: Atelier N°10 | R10: Atelier N°11 | S10: Atelier N°12 | T10: Atelier N°13 | U10: Atelier N°14 | V10: Atelier N°15 | W10: Ergo ou Course à pied + Ergo | X10: cal
F11: 2020 | AB11: Total | AC11: Nom Pénom
B12: RUMAUX LILY | C12: VILLENEUVE AV | D12: =IF(B12<>"","J"&(($F$11)-(YEAR(F12)))&E12,"") -> J11F | E12: F | F12: 2009-12-21 | G12: 40 | H12: 10 | I12: 30 | J12: 10 | K12: 20 | L12: 20 | M12: 20 | N12: 10 | O12: 30 | P12: 20 | Q12: 20 | R12: 30 | S12: 10 | T12: 10 | U12: 10 | V12: 10 | W12: Ergo | X12: 59 | Y12: =IF(G12>0,G12,"") -> 40 | Z12: =SUM(H12:V12) -> 260 | AA12: =IF(W12="Ergo",X12/2,IF(W12="Course + Ergo",X12,"")) -> 29.5 | AB12: =SUM(Y12:AA12) -> 329.5 | AC12: =IF(B12<>"",B12,"") -> RUMAUX LILY | AD12: =+C12 -> VILLENEUVE AV
B13: RODRIGUEZ MORGANE | C13: MARMANDE AV | D13: J11F | E13: F | F13: 2009-05-18 | G13: 40 | H13: 10 | I13: 20 | J13: 20 | K13: 10 | L13: 10 | M13: 10 | N13: 10 | O13: 10 | P13: 10 | Q13: 10 | R13: 10 | S13: 10 | T13: 20 | U13: 20 | V13: 10 | W13: Ergo | X13: 59 | Y13: 40 | Z13: 190 | AA13: 29.5 | AB13: 259.5 | AC13: RODRIGUEZ MORGANE | AD13: MARMANDE AV
B14: DUSAN-JAUDEAU EMMA | C14: LIBOURNE CN | D14: J11F | E14: F | F14: 2009-05-06 | G14: 40 | H14: 10 | I14: 10 | J14: 10 | K14: 10 | L14: 10 | M14: 10 | N14: 0 | O14: 10 | P14: 10 | Q14: 10 | R14: 20 | S14: 10 | T14: 20 | U14: 20 | V14: 10 | W14: Ergo | X14: 79 | Y14: 40 | Z14: 170 | AA14: 39.5 | AB14: 249.5 | AC14: DUSAN-JAUDEAU EMMA | AD14: LIBOURNE CN
B15: RABBAH FATINE | C15: BERGERAC SN | D15: J11F | E15: F | F15: 2009-08-27 | G15: 40 | H15: 10 | I15: 20 | J15: 20 | K15: 10 | L15: 0 | M15: 10 | N15: 0 | O15: 30 | P15: 20 | Q15: 20 | R15: 0 | S15: 10 | T15: 10 | U15: 10 | V15: 0 | W15: Ergo | X15: 62 | Y15: 40 | Z15: 170 | AA15: 31 | AB15: 241 | AC15: RABBAH FATINE | AD15: BERGERAC SN
B16: AMOUROUX TIA | C16: BERGERAC SN | D16: J11F | E16: F | F16: 2009-01-01 | G16: 40 | H16: 10 | I16: 20 | J16: 10 | K16: 10 | L16: 10 | M16: 10 | N16: 0 | O16: 10 | P16: 20 | Q16: 10 | R16: 20 | S16: 10 | T16: 10 | U16: 10 | V16: 0 | W16: Ergo | X16: 76 | Y16: 40 | Z16: 160 | AA16: 38 | AB16: 238 | AC16: AMOUROUX TIA | AD16: BERGERAC SN
B17: KOUASSI NINA | C17: VILLENEUVE AV | D17: J10F | E17: F | F17: 2010-02-28 | G17: 40 | H17: 10 | I17: 10 | J17: 0 | K17: 10 | L17: 10 | M17: 10 | N17: 10 | O17: 10 | P17: 10 | Q17: 10 | R17: 0 | S17: 10 | T17: 10 | U17: 10 | V17: 0 | W17: Ergo | X17: 63 | Y17: 40 | Z17: 120 | AA17: 31.5 | AB17: 191.5 | AC17: KOUASSI NINA | AD17: VILLENEUVE AV
B18: RADI NAWEL | C18: BERGERAC SN | D18: J11F | E18: F | F18: 2009-02-25 | G18: 40 | H18: 10 | I18: 10 | J18: 0 | K18: 10 | L18: 0 | M18: 20 | N18: 0 | O18: 0 | P18: 20 | Q18: 10 | R18: 10 | S18: 10 | T18: 20 | U18: 0 | V18: 0 | W18: Ergo | X18: 0 | Y18: 40 | Z18: 120 | AA18: 0 | AB18: 160 | AC18: RADI NAWEL | AD18: BERGERAC SN
B19: GICQUEL YONA | C19: VILLENEUVE AV | D19: J10F | E19: F | F19: 2010-04-29 | G19: 40 | H19: 10 | I19: 10 | J19: 10 | K19: 10 | L19: 0 | M19: 10 | N19: 0 | O19: 0 | P19: 10 | Q19: 10 | R19: 0 | S19: 0 | T19: 10 | U19: 10 | V19: 0 | W19: Ergo | X19: 53 | Y19: 40 | Z19: 90 | AA19: 26.5 | AB19: 156.5 | AC19: GICQUEL YONA | AD19: VILLENEUVE AV
B20: DIONISIO FAGETTE EMMY | C20: BERGERAC SN | D20: J11F | E20: F | F20: 2009-08-30 | G20: 40 | H20: 10 | I20: 10 | J20: 0 | K20: 10 | L20: 0 | M20: 20 | N20: 0 | O20: 0 | P20: 10 | Q20: 0 | R20: 0 | S20: 0 | T20: 10 | U20: 10 | V20: 0 | W20: Ergo | X20: 73 | Y20: 40 | Z20: 80 | AA20: 36.5 | AB20: 156.5 | AC20: DIONISIO FAGETTE EMMY | AD20: BERGERAC SN
B21: LAURIOU EMMY | C21: BERGERAC SN | D21: J10F | E21: F | F21: 2010-07-07 | Z21: 0 | AB21: 0 | AC21: LAURIOU EMMY | AD21: BERGERAC SN
B22: VAUDOIS ALICIA | C22: BERGERAC SN | D22: J10F | E22: F | F22: 2010-01-05 | Z22: 0 | AB22: 0 | AC22: VAUDOIS ALICIA | AD22: BERGERAC SN
B23: ARTAMONOFF ETCHEVERRY NOE | C23: MARMANDE AV | D23: J10H | E23: H | F23: 2010-01-05 | Z23: 0 | AB23: 0 | AC23: ARTAMONOFF ETCHEVERRY NOE | AD23: MARMANDE AV
B24: BOURHIS LAYLA | C24: VILLENEUVE AV | D24: J11F | E24: F | F24: 2009-12-14 | Z24: 0 | AB24: 0 | AC24: BOURHIS LAYLA | AD24: VILLENEUVE AV
B25: HERNANDEZ LOUNA | C25: LIBOURNE CN | D25: J11F | E25: F | F25: 2009-01-14 | Z25: 0 | AB25: 0 | AC25: HERNANDEZ LOUNA | AD25: LIBOURNE CN
B26: MONTEIRO OLIVIA | C26: MARMANDE AV | D26: J11F | E26: F | F26: 2009-10-12 | Z26: 0 | AB26: 0 | AC26: MONTEIRO OLIVIA | AD26: MARMANDE AV
B27: ORTEGA ROSELYNE | C27: SAINT SYLVESTRE CN | D27: J11F | E27: F | F27: 2009-08-12 | Z27: 0 | AB27: 0 | AC27: ORTEGA ROSELYNE | AD27: SAINT SYLVESTRE CN
B28: TURCKI LEO | C28: BERGERAC SN | D28: J11H | E28: H | F28: 2009-08-19 | G28: 40 | H28: 20 | I28: 30 | J28: 10 | K28: 10 | L28: 10 | M28: 20 | N28: 30 | O28: 10 | P28: 10 | Q28: 10 | R28: 30 | S28: 10 | T28: 30 | U28: 10 | V28: 10 | W28: Ergo | X28: 57 | Y28: 40 | Z28: 250 | AA28: 28.5 | AB28: 318.5 | AC28: TURCKI LEO | AD28: BERGERAC SN
B29: ABBADIE MAXIME | C29: LIBOURNE CN | D29: J11H | E29: H | F29: 2009-12-05 | G29: 40 | H29: 10 | I29: 20 | J29: 10 | K29: 10 | L29: 10 | M29: 20 | N29: 20 | O29: 10 | P29: 20 | Q29: 10 | R29: 20 | S29: 10 | T29: 30 | U29: 30 | V29: 0 | W29: Ergo | X29: 82 | Y29: 40 | Z29: 230 | AA29: 41 | AB29: 311 | AC29: ABBADIE MAXIME | AD29: LIBOURNE CN
B30: HERITEAU NOE | C30: MARMANDE AV | D30: J11H | E30: H | F30: 2009-02-17 | G30: 40 | H30: 10 | I30: 30 | J30: 20 | K30: 10 | L30: 10 | M30: 10 | N30: 0 | O30: 10 | P30: 20 | Q30: 0 | R30: 20 | S30: 10 | T30: 20 | U30: 30 | V30: 0 | W30: Ergo | X30: 81 | Y30: 40 | Z30: 200 | AA30: 40.5 | AB30: 280.5 | AC30: HERITEAU NOE | AD30: MARMANDE AV
B31: ROUSSELY JOHAN | C31: BERGERAC SN | D31: J11H | E31: H | F31: 2009-02-02 | G31: 40 | H31: 10 | I31: 20 | J31: 10 | K31: 10 | L31: 10 | M31: 20 | N31: 0 | O31: 10 | P31: 20 | Q31: 10 | R31: 30 | S31: 10 | T31: 10 | U31: 10 | V31: 10 | W31: Ergo | X31: 68 | Y31: 40 | Z31: 190 | AA31: 34 | AB31: 264 | AC31: ROUSSELY JOHAN | AD31: BERGERAC SN
B32: PAILLAS CORENTIN | C32: VILLENEUVE AV | D32: J11H | E32: H | F32: 2009-05-27 | G32: 40 | H32: 10 | I32: 20 | J32: 10 | K32: 10 | L32: 10 | M32: 10 | N32: 10 | O32: 10 | P32: 20 | Q32: 10 | R32: 20 | S32: 10 | T32: 10 | U32: 10 | V32: 0 | W32: Ergo | X32: 94 | Y32: 40 | Z32: 170 | AA32: 47 | AB32: 257 | AC32: PAILLAS CORENTIN | AD32: VILLENEUVE AV
B33: TEURLEY JUSTEEN | C33: LIBOURNE CN | D33: J11H | E33: H | F33: 2009-04-08 | Z33: 0 | AB33: 0 | AC33: TEURLEY JUSTEEN | AD33: LIBOURNE CN
B34: CESBRON KRISTAL | C34: BERGERAC SN | D34: J12F | E34: F | F34: 2008-03-07 | G34: 40 | H34: 10 | I34: 30 | J34: 20 | K34: 10 | L34: 10 | M34: 20 | N34: 30 | O34: 20 | P34: 20 | Q34: 20 | R34: 20 | S34: 10 | T34: 20 | U34: 10 | V34: 10 | W34: Ergo | X34: 74 | Y34: 40 | Z34: 260 | AA34: 37 | AB34: 337 | AC34: CESBRON KRISTAL | AD34: BERGERAC SN
B35: TURCKI CELIA | C35: BERGERAC SN | D35: J12F | E35: F | F35: 2008-01-09 | G35: 40 | H35: 10 | I35: 20 | J35: 10 | K35: 10 | L35: 20 | M35: 20 | N35: 0 | O35: 20 | P35: 20 | Q35: 20 | R35: 30 | S35: 10 | T35: 30 | U35: 10 | V35: 0 | W35: Ergo | X35: 84 | Y35: 40 | Z35: 230 | AA35: 42 | AB35: 312 | AC35: TURCKI CELIA | AD35: BERGERAC SN
B36: PERVIEUX LYDIE | C36: BERGERAC SN | D36: J12F | E36: F | F36: 2008-02-19 | G36: 40 | H36: 10 | I36: 20 | J36: 10 | K36: 10 | L36: 10 | M36: 20 | N36: 0 | O36: 20 | P36: 20 | Q36: 10 | R36: 30 | S36: 10 | T36: 20 | U36: 20 | V36: 0 | W36: Ergo | X36: 108 | Y36: 40 | Z36: 210 | AA36: 54 | AB36: 304 | AC36: PERVIEUX LYDIE | AD36: BERGERAC SN
B37: SORBIER LEA | C37: BERGERAC SN | D37: J12F | E37: F | F37: 2008-03-21 | G37: 40 | H37: 10 | I37: 20 | J37: 10 | K37: 10 | L37: 10 | M37: 10 | N37: 30 | O37: 20 | P37: 20 | Q37: 10 | R37: 20 | S37: 10 | T37: 10 | U37: 10 | V37: 10 | W37: Ergo | X37: 89 | Y37: 40 | Z37: 210 | AA37: 44.5 | AB37: 294.5 | AC37: SORBIER LEA | AD37: BERGERAC SN
B38: EL KARMA SAFFIYA | C38: BERGERAC SN | D38: J12F | E38: F | F38: 2008-04-04 | G38: 40 | H38: 10 | I38: 10 | J38: 10 | K38: 10 | L38: 10 | M38: 20 | N38: 10 | O38: 10 | P38: 20 | Q38: 10 | R38: 20 | S38: 10 | T38: 20 | U38: 10 | V38: 0 | W38: Ergo | X38: 61 | Y38: 40 | Z38: 180 | AA38: 30.5 | AB38: 250.5 | AC38: EL KARMA SAFFIYA | AD38: BERGERAC SN
B39: SEDENSKI RACHEL | C39: BERGERAC SN | D39: J12F | E39: F | F39: 2008-08-26 | G39: 40 | H39: 10 | I39: 20 | J39: 10 | K39: 10 | L39: 10 | M39: 20 | N39: 0 | O39: 10 | P39: 20 | Q39: 10 | R39: 10 | S39: 10 | T39: 20 | U39: 10 | V39: 0 | W39: Ergo | X39: 78 | Y39: 40 | Z39: 170 | AA39: 39 | AB39: 249 | AC39: SEDENSKI RACHEL | AD39: BERGERAC SN
B40: BENETON TESS | C40: SAINT SYLVESTRE CN | D40: J12F | E40: F | F40: 2008-03-11 | G40: 40 | H40: 10 | I40: 20 | J40: 10 | K40: 10 | L40: 10 | M40: 10 | N40: 20 | O40: 10 | P40: 10 | Q40: 10 | R40: 10 | S40: 10 | T40: 10 | U40: 10 | V40: 0 | W40: Ergo | X40: 73 | Y40: 40 | Z40: 160 | AA40: 36.5 | AB40: 236.5 | AC40: BENETON TESS | AD40: SAINT SYLVESTRE CN
B41: LHUMEAU LOUANN | C41: BERGERAC SN | D41: J12F | E41: F | F41: 2008-04-17 | G41: 40 | H41: 10 | I41: 10 | J41: 10 | K41: 10 | L41: 10 | M41: 10 | N41: 0 | O41: 0 | P41: 20 | Q41: 10 | R41: 10 | S41: 10 | T41: 10 | U41: 10 | V41: 0 | W41: Ergo | X41: 73 | Y41: 40 | Z41: 130 | AA41: 36.5 | AB41: 206.5 | AC41: LHUMEAU LOUANN | AD41: BERGERAC SN
B42: MASSONIE HECTOR | C42: LIBOURNE CN | D42: J12H | E42: H | F42: 2008-02-21 | G42: 40 | H42: 20 | I42: 30 | J42: 10 | K42: 30 | L42: 20 | M42: 20 | N42: 30 | O42: 10 | P42: 30 | Q42: 20 | R42: 20 | S42: 10 | T42: 20 | U42: 30 | V42: 10 | W42: Ergo | X42: 94 | Y42: 40 | Z42: 310 | AA42: 47 | AB42: 397 | AC42: MASSONIE HECTOR | AD42: LIBOURNE CN
B43: LABOURE LUCIEN | C43: BORDEAUX EN | D43: J12H | E43: H | F43: 2008-06-10 | G43: 40 | H43: 20 | I43: 30 | J43: 10 | K43: 20 | L43: 20 | M43: 10 | N43: 10 | O43: 20 | P43: 20 | Q43: 20 | R43: 20 | S43: 10 | T43: 30 | U43: 30 | V43: 0 | W43: Ergo | X43: 84 | Y43: 40 | Z43: 270 | AA43: 42 | AB43: 352 | AC43: LABOURE LUCIEN | AD43: BORDEAUX EN
B44: HIBON TRISTAN | C44: LIBOURNE CN | D44: =IF(B44<>"","J"&(($F$11)-(YEAR(F44)))&E44,"") -> J12H | E44: H | F44: 2008-09-22 | G44: 40 | H44: 20 | I44: 30 | J44: 20 | K44: 0 | L44: 10 | M44: 20 | N44: 0 | O44: 20 | P44: 30 | Q44: 20 | R44: 30 | S44: 10 | T44: 30 | U44: 30 | V44: 10 | W44: Course + Ergo | X44: 29 | Y44: =IF(G44>0,G44,"") -> 40 | Z44: =SUM(H44:V44) -> 280 | AA44: =IF(W44="Ergo",X44/2,IF(W44="Course + Ergo",X44,"")) -> 29 | AB44: =SUM(Y44:AA44) -> 349 | AC44: =IF(B44<>"",B44,"") -> HIBON TRISTAN | AD44: =+C44 -> LIBOURNE CN
B45: CREVEAUX DARMANTE JON | C45: BORDEAUX EN | D45: J12H | E45: H | F45: 2008-08-20 | G45: 40 | H45: 30 | I45: 30 | J45: 20 | K45: 20 | L45: 10 | M45: 10 | N45: 10 | O45: 10 | P45: 10 | Q45: 10 | R45: 10 | S45: 10 | T45: 30 | U45: 10 | V45: 10 | W45: Ergo | X45: 60 | Y45: 40 | Z45: 230 | AA45: 30 | AB45: 300 | AC45: CREVEAUX DARMANTE JON | AD45: BORDEAUX EN
B46: NAISSANT GIOVANNI | C46: BERGERAC SN | D46: J12H | E46: H | F46: 2008-02-05 | G46: 40 | H46: 10 | I46: 30 | J46: 10 | K46: 10 | L46: 10 | M46: 10 | N46: 0 | O46: 20 | P46: 30 | Q46: 10 | R46: 30 | S46: 10 | T46: 10 | U46: 10 | V46: 10 | W46: Ergo | X46: 97 | Y46: 40 | Z46: 210 | AA46: 48.5 | AB46: 298.5 | AC46: NAISSANT GIOVANNI | AD46: BERGERAC SN
B47: BEZIAU LOIC | C47: BORDEAUX EN | D47: J12H | E47: H | F47: 2008-10-17 | G47: 40 | H47: 10 | I47: 30 | J47: 10 | K47: 20 | L47: 10 | M47: 30 | N47: 20 | O47: 10 | P47: 10 | Q47: 10 | R47: 10 | S47: 10 | T47: 30 | U47: 10 | V47: 0 | W47: Ergo | X47: 68 | Y47: 40 | Z47: 220 | AA47: 34 | AB47: 294 | AC47: BEZIAU LOIC | AD47: BORDEAUX EN
B48: SOUYRIS THYMOTEY | C48: SAINT SYLVESTRE CN | D48: J12H | E48: H | F48: 2008-11-01 | G48: 40 | H48: 10 | I48: 10 | J48: 10 | K48: 20 | L48: 10 | M48: 20 | N48: 20 | O48: 20 | P48: 10 | Q48: 10 | R48: 20 | S48: 0 | T48: 10 | U48: 10 | V48: 10 | W48: Ergo | X48: 75 | Y48: 40 | Z48: 190 | AA48: 37.5 | AB48: 267.5 | AC48: SOUYRIS THYMOTEY | AD48: SAINT SYLVESTRE CN
B49: VITRAC LUCA | C49: BERGERAC SN | D49: J12H | E49: H | F49: 2008-12-16 | G49: 40 | H49: 10 | I49: 20 | J49: 10 | K49: 10 | L49: 10 | M49: 20 | N49: 0 | O49: 10 | P49: 20 | Q49: 10 | R49: 30 | S49: 10 | T49: 10 | U49: 10 | V49: 0 | W49: Ergo | X49: 81 | Y49: 40 | Z49: 180 | AA49: 40.5 | AB49: 260.5 | AC49: VITRAC LUCA | AD49: BERGERAC SN
B50: RABBAH MOHAMEDYASSINE | C50: BERGERAC SN | D50: J12H | E50: H | F50: 2008-03-22 | G50: 40 | H50: 10 | I50: 30 | J50: 10 | K50: 10 | L50: 0 | M50: 20 | N50: 0 | O50: 10 | P50: 10 | Q50: 10 | R50: 10 | S50: 10 | T50: 10 | U50: 10 | V50: 0 | W50: Ergo | X50: 68 | Y50: 40 | Z50: 150 | AA50: 34 | AB50: 224 | AC50: RABBAH MOHAMEDYASSINE | AD50: BERGERAC SN
B51: GARCIA PABLO | C51: BORDEAUX EN | D51: J12H | E51: H | F51: 2008-01-05 | G51: 40 | H51: 10 | I51: 20 | J51: 10 | K51: 10 | L51: 0 | M51: 10 | N51: 10 | O51: 0 | P51: 10 | Q51: 10 | R51: 10 | S51: 0 | T51: 10 | U51: 10 | V51: 0 | W51: Ergo | X51: 77 | Y51: 40 | Z51: 120 | AA51: 38.5 | AB51: 198.5 | AC51: GARCIA PABLO | AD51: BORDEAUX EN
B52: LAGAUZERE NATHAN | C52: MARMANDE AV | D52: J12H | E52: H | F52: 2008-12-18 | G52: 40 | H52: 10 | I52: 10 | J52: 0 | K52: 10 | L52: 0 | M52: 0 | N52: 0 | O52: 0 | P52: 10 | Q52: 0 | R52: 10 | S52: 0 | T52: 10 | U52: 10 | V52: 0 | W52: Ergo | X52: 63 | Y52: 40 | Z52: 70 | AA52: 31.5 | AB52: 141.5 | AC52: LAGAUZERE NATHAN | AD52: MARMANDE AV
B53: ERPELDING ADAM | C53: MARMANDE AV | D53: J12H | E53: H | F53: 2008-07-07 | Z53: 0 | AB53: 0 | AC53: ERPELDING ADAM | AD53: MARMANDE AV
B54: HABIBI MEHDY | C54: BERGERAC SN | D54: J12H | E54: H | F54: 2008-10-11 | Z54: 0 | AB54: 0 | AC54: HABIBI MEHDY | AD54: BERGERAC SN
B55: VERTUOL CALIXTE | C55: MARMANDE AV | D55: J12H | E55: H | F55: 2008-12-18 | Z55: 0 | AB55: 0 | AC55: VERTUOL CALIXTE | AD55: MARMANDE AV
B56: VIDEAU MARC | C56: BERGERAC SN | D56: J12H | E56: H | F56: 2008-04-23 | Z56: 0 | AB56: 0 | AC56: VIDEAU MARC | AD56: BERGERAC SN
B57: DELBOS LANA | C57: BERGERAC SN | D57: J13F | E57: F | F57: 2007-05-05 | G57: 40 | H57: 20 | I57: 30 | J57: 10 | K57: 20 | L57: 30 | M57: 20 | N57: 20 | O57: 30 | P57: 20 | Q57: 20 | R57: 30 | S57: 10 | T57: 30 | U57: 30 | V57: 10 | W57: Ergo | X57: 114 | Y57: 40 | Z57: 330 | AA57: 57 | AB57: 427 | AC57: DELBOS LANA | AD57: BERGERAC SN
B58: GALISSAIRES CHARLOTTE | C58: MARMANDE AV | D58: J13F | E58: F | F58: 2007-03-28 | G58: 40 | H58: 20 | I58: 30 | J58: 20 | K58: 10 | L58: 20 | M58: 30 | N58: 30 | O58: 0 | P58: 20 | Q58: 30 | R58: 20 | S58: 10 | T58: 20 | U58: 30 | V58: 10 | W58: Ergo | X58: 116 | Y58: 40 | Z58: 300 | AA58: 58 | AB58: 398 | AC58: GALISSAIRES CHARLOTTE | AD58: MARMANDE AV
B59: BUGEAUD HELOISE | C59: BORDEAUX EN | D59: J13F | E59: F | F59: 2007-07-11 | G59: 40 | H59: 20 | I59: 30 | J59: 20 | K59: 20 | L59: 10 | M59: 10 | N59: 20 | O59: 20 | P59: 20 | Q59: 20 | R59: 30 | S59: 10 | T59: 30 | U59: 30 | V59: 20 | W59: Ergo | X59: 93 | Y59: 40 | Z59: 310 | AA59: 46.5 | AB59: 396.5 | AC59: BUGEAUD HELOISE | AD59: BORDEAUX EN
B60: CORROCHER JANYCE | C60: SAINT SYLVESTRE CN | D60: J13F | E60: F | F60: 2007-10-13 | G60: 40 | H60: 20 | I60: 20 | J60: 20 | K60: 20 | L60: 20 | M60: 20 | N60: 20 | O60: 20 | P60: 20 | Q60: 20 | R60: 20 | S60: 10 | T60: 20 | U60: 20 | V60: 10 | W60: Ergo | X60: 91 | Y60: 40 | Z60: 280 | AA60: 45.5 | AB60: 365.5 | AC60: CORROCHER JANYCE | AD60: SAINT SYLVESTRE CN
B61: ISSEN JULIETTE | C61: LIBOURNE CN | D61: J13F | E61: F | F61: 2007-08-22 | G61: 40 | H61: 10 | I61: 30 | J61: 20 | K61: 20 | L61: 20 | M61: 20 | N61: 30 | O61: 20 | P61: 20 | Q61: 10 | R61: 30 | S61: 10 | T61: 30 | U61: 10 | V61: 0 | W61: Ergo | X61: 91 | Y61: 40 | Z61: 280 | AA61: 45.5 | AB61: 365.5 | AC61: ISSEN JULIETTE | AD61: LIBOURNE CN
B62: ROCHERJUGE BAIA | C62: VILLENEUVE AV | D62: J13F | E62: F | F62: 2007-06-26 | G62: 40 | H62: 10 | I62: 30 | J62: 10 | K62: 10 | L62: 20 | M62: 20 | N62: 20 | O62: 20 | P62: 20 | Q62: 20 | R62: 30 | S62: 10 | T62: 10 | U62: 20 | V62: 10 | W62: Ergo | X62: 94 | Y62: 40 | Z62: 260 | AA62: 47 | AB62: 347 | AC62: ROCHERJUGE BAIA | AD62: VILLENEUVE AV
B63: MARTIN HAUTEVILLE CAPUCINE | C63: VILLENEUVE AV | D63: J13F | E63: F | F63: 2007-01-25 | G63: 40 | H63: 10 | I63: 30 | J63: 10 | K63: 10 | L63: 10 | M63: 20 | N63: 20 | O63: 20 | P63: 20 | Q63: 20 | R63: 30 | S63: 10 | T63: 10 | U63: 30 | V63: 0 | W63: Ergo | X63: 97 | Y63: 40 | Z63: 250 | AA63: 48.5 | AB63: 338.5 | AC63: MARTIN HAUTEVILLE CAPUCINE | AD63: VILLENEUVE AV
B64: BOUYAHI LYLIA | C64: VILLENEUVE AV | D64: J13F | E64: F | F64: 2007-07-15 | G64: 40 | H64: 10 | I64: 30 | J64: 10 | K64: 10 | L64: 20 | M64: 20 | N64: 20 | O64: 20 | P64: 20 | Q64: 10 | R64: 30 | S64: 10 | T64: 10 | U64: 20 | V64: 0 | W64: Ergo | X64: 107 | Y64: 40 | Z64: 240 | AA64: 53.5 | AB64: 333.5 | AC64: BOUYAHI LYLIA | AD64: VILLENEUVE AV
B65: HECHELSKI EILEEN | C65: SAINT SYLVESTRE CN | D65: J13F | E65: F | F65: 2007-09-18 | G65: 40 | H65: 10 | I65: 20 | J65: 10 | K65: 10 | L65: 20 | M65: 30 | N65: 20 | O65: 20 | P65: 20 | Q65: 10 | R65: 10 | S65: 10 | T65: 10 | U65: 10 | V65: 0 | W65: Ergo | X65: 84 | Y65: 40 | Z65: 210 | AA65: 42 | AB65: 292 | AC65: HECHELSKI EILEEN | AD65: SAINT SYLVESTRE CN
B66: ATZORI MARGOT | C66: BERGERAC SN | D66: J13F | E66: F | F66: 2007-02-15 | G66: 40 | H66: 10 | I66: 20 | J66: 10 | K66: 20 | L66: 20 | M66: 20 | N66: 20 | O66: 0 | P66: 20 | Q66: 10 | R66: 0 | S66: 10 | T66: 0 | U66: 30 | V66: 0 | W66: Ergo | X66: 91 | Y66: 40 | Z66: 190 | AA66: 45.5 | AB66: 275.5 | AC66: ATZORI MARGOT | AD66: BERGERAC SN
B67: RAFFY SUERES LALIE | C67: VILLENEUVE AV | D67: J13F | E67: F | F67: 2007-10-04 | G67: 40 | H67: 10 | I67: 30 | J67: 10 | K67: 10 | L67: 10 | M67: 10 | N67: 10 | O67: 20 | P67: 10 | Q67: 10 | R67: 20 | S67: 10 | T67: 10 | U67: 20 | V67: 0 | W67: Ergo | X67: 79 | Y67: 40 | Z67: 190 | AA67: 39.5 | AB67: 269.5 | AC67: RAFFY SUERES LALIE | AD67: VILLENEUVE AV
B68: DIET LEA | C68: LIBOURNE CN | D68: J13F | E68: F | F68: 2007-02-09 | G68: 40 | H68: 10 | I68: 20 | J68: 10 | K68: 10 | L68: 10 | M68: 10 | N68: 0 | O68: 0 | P68: 20 | Q68: 10 | R68: 20 | S68: 0 | T68: 30 | U68: 20 | V68: 0 | W68: Ergo | X68: 82 | Y68: 40 | Z68: 170 | AA68: 41 | AB68: 251 | AC68: DIET LEA | AD68: LIBOURNE CN
B69: LAVIELLE FLORENTINE | C69: BORDEAUX EN | D69: J13F | E69: F | F69: 2007-01-05 | G69: 40 | H69: 10 | I69: 20 | J69: 10 | K69: 10 | L69: 10 | M69: 20 | N69: 20 | O69: 10 | P69: 0 | Q69: 10 | R69: 10 | S69: 10 | T69: 10 | U69: 10 | V69: 0 | W69: Ergo | X69: 91 | Y69: 40 | Z69: 160 | AA69: 45.5 | AB69: 245.5 | AC69: LAVIELLE FLORENTINE | AD69: BORDEAUX EN
B70: ARNAUD EMMA | C70: LIBOURNE CN | D70: J13F | E70: F | F70: 2007-08-21 | Z70: 0 | AB70: 0 | AC70: ARNAUD EMMA | AD70: LIBOURNE CN
B71: AUGUSTE ANAELLE | C71: BERGERAC SN | D71: J13F | E71: F | F71: 2007-12-07 | Z71: 0 | AB71: 0 | AC71: AUGUSTE ANAELLE | AD71: BERGERAC SN
B72: BAPTISTA RUIZ CELENE | C72: LIBOURNE CN | D72: J13F | E72: F | F72: 2007-04-04 | Z72: 0 | AB72: 0 | AC72: BAPTISTA RUIZ CELENE | AD72: LIBOURNE CN
B73: DELRIEU CLEMENCE | C73: VILLENEUVE AV | D73: J13F | E73: F | F73: 2007-10-28 | Z73: 0 | AB73: 0 | AC73: DELRIEU CLEMENCE | AD73: VILLENEUVE AV
B74: PEBAYLE AXEL | C74: BERGERAC SN | D74: J13H | E74: H | F74: 2007-03-22 | G74: 40 | H74: 20 | I74: 30 | J74: 30 | K74: 30 | L74: 30 | M74: 30 | N74: 30 | O74: 30 | P74: 30 | Q74: 30 | R74: 30 | S74: 10 | T74: 30 | U74: 30 | V74: 0 | W74: Ergo | X74: 125 | Y74: 40 | Z74: 390 | AA74: 62.5 | AB74: 492.5 | AC74: PEBAYLE AXEL | AD74: BERGERAC SN
B75: PARUIT LEOPOLD | C75: BORDEAUX EN | D75: J13H | E75: H | F75: 2007-02-10 | G75: 40 | H75: 30 | I75: 30 | J75: 30 | K75: 30 | L75: 20 | M75: 30 | N75: 30 | O75: 20 | P75: 30 | Q75: 30 | R75: 30 | S75: 10 | T75: 30 | U75: 30 | V75: 0 | W75: Course + Ergo | X75: 45 | Y75: 40 | Z75: 380 | AA75: 45 | AB75: 465 | AC75: PARUIT LEOPOLD | AD75: BORDEAUX EN
B76: VOGELEER MAX | C76: MARMANDE AV | D76: =IF(B76<>"","J"&(($F$11)-(YEAR(F76)))&E76,"") -> J13H | E76: H | F76: 2007-04-28 | G76: 40 | H76: 30 | I76: 30 | J76: 20 | K76: 20 | L76: 20 | M76: 20 | N76: 30 | O76: 30 | P76: 30 | Q76: 30 | R76: 30 | S76: 10 | T76: 30 | U76: 30 | V76: 10 | W76: Ergo | X76: 94 | Y76: =IF(G76>0,G76,"") -> 40 | Z76: =SUM(H76:V76) -> 370 | AA76: =IF(W76="Ergo",X76/2,IF(W76="Course + Ergo",X76,"")) -> 47 | AB76: =SUM(Y76:AA76) -> 457 | AC76: =IF(B76<>"",B76,"") -> VOGELEER MAX | AD76: =+C76 -> MARMANDE AV
B77: RIEU VALMY | C77: BORDEAUX EN | D77: J13H | E77: H | F77: 2007-03-15 | G77: 40 | H77: 30 | I77: 30 | J77: 20 | K77: 30 | L77: 20 | M77: 20 | N77: 20 | O77: 20 | P77: 30 | Q77: 30 | R77: 20 | S77: 10 | T77: 30 | U77: 20 | V77: 10 | W77: Ergo | X77: 115 | Y77: 40 | Z77: 340 | AA77: 57.5 | AB77: 437.5 | AC77: RIEU VALMY | AD77: BORDEAUX EN
B78: BONTE ELIOTT | C78: MARMANDE AV | D78: J13H | E78: H | F78: 2007-06-22 | G78: 40 | H78: 20 | I78: 20 | J78: 20 | K78: 10 | L78: 20 | M78: 20 | N78: 30 | O78: 30 | P78: 20 | Q78: 20 | R78: 20 | S78: 10 | T78: 30 | U78: 30 | V78: 10 | W78: Ergo | X78: 88 | Y78: 40 | Z78: 310 | AA78: 44 | AB78: 394 | AC78: BONTE ELIOTT | AD78: MARMANDE AV
B79: ZACCHIA NOLAN | C79: SAINT SYLVESTRE CN | D79: J13H | E79: H | F79: 2007-04-09 | G79: 40 | H79: 20 | I79: 20 | J79: 20 | K79: 20 | L79: 20 | M79: 20 | N79: 20 | O79: 30 | P79: 20 | Q79: 20 | R79: 30 | S79: 10 | T79: 10 | U79: 30 | V79: 10 | W79: Ergo | X79: 98 | Y79: 40 | Z79: 300 | AA79: 49 | AB79: 389 | AC79: ZACCHIA NOLAN | AD79: SAINT SYLVESTRE CN
B80: ALGISI IMANOL | C80: VILLENEUVE AV | D80: J13H | E80: H | F80: 2007-05-30 | G80: 40 | H80: 20 | I80: 30 | J80: 10 | K80: 20 | L80: 20 | M80: 20 | N80: 20 | O80: 20 | P80: 20 | Q80: 30 | R80: 30 | S80: 10 | T80: 20 | U80: 20 | V80: 10 | W80: Ergo | X80: 95 | Y80: 40 | Z80: 300 | AA80: 47.5 | AB80: 387.5 | AC80: ALGISI IMANOL | AD80: VILLENEUVE AV
B81: RIEUBLANC EVAN | C81: LIBOURNE CN | D81: J13H | E81: H | F81: 2007-01-24 | G81: 40 | H81: 10 | I81: 30 | J81: 20 | K81: 10 | L81: 20 | M81: 20 | N81: 30 | O81: 0 | P81: 20 | Q81: 10 | R81: 30 | S81: 10 | T81: 30 | U81: 30 | V81: 0 | W81: Ergo | X81: 108 | Y81: 40 | Z81: 270 | AA81: 54 | AB81: 364 | AC81: RIEUBLANC EVAN | AD81: LIBOURNE CN
B82: ROUX ADRIEN | C82: LIBOURNE CN | D82: J13H | E82: H | F82: 2007-12-31 | G82: 40 | H82: 10 | I82: 20 | J82: 30 | K82: 20 | L82: 10 | M82: 20 | N82: 30 | O82: 0 | P82: 20 | Q82: 20 | R82: 30 | S82: 0 | T82: 30 | U82: 30 | V82: 0 | W82: Ergo | X82: 92 | Y82: 40 | Z82: 270 | AA82: 46 | AB82: 356 | AC82: ROUX ADRIEN | AD82: LIBOURNE CN
B83: LAUTRETE ANTOINE | C83: LIBOURNE CN | D83: J13H | E83: H | F83: 2007-04-26 | G83: 40 | H83: 10 | I83: 20 | J83: 20 | K83: 10 | L83: 20 | M83: 20 | N83: 0 | O83: 20 | P83: 20 | Q83: 20 | R83: 20 | S83: 10 | T83: 30 | U83: 30 | V83: 10 | W83: Ergo | X83: 82 | Y83: 40 | Z83: 260 | AA83: 41 | AB83: 341 | AC83: LAUTRETE ANTOINE | AD83: LIBOURNE CN
B84: BIHAN ELIAS | C84: MARMANDE AV | D84: J13H | E84: H | F84: 2007-04-05 | G84: 40 | H84: 10 | I84: 20 | J84: 20 | K84: 10 | L84: 10 | M84: 10 | N84: 20 | O84: 20 | P84: 20 | Q84: 20 | R84: 20 | S84: 10 | T84: 20 | U84: 30 | V84: 10 | W84: Ergo | X84: 82 | Y84: 40 | Z84: 250 | AA84: 41 | AB84: 331 | AC84: BIHAN ELIAS | AD84: MARMANDE AV
B85: VITRAC NATHAN | C85: BERGERAC SN | D85: J13H | E85: H | F85: 2007-12-12 | G85: 40 | H85: 20 | I85: 20 | J85: 20 | K85: 10 | L85: 0 | M85: 20 | N85: 20 | O85: 20 | P85: 20 | Q85: 20 | R85: 20 | S85: 10 | T85: 20 | U85: 20 | V85: 0 | W85: Ergo | X85: 101 | Y85: 40 | Z85: 240 | AA85: 50.5 | AB85: 330.5 | AC85: VITRAC NATHAN | AD85: BERGERAC SN
B86: MAYOR ENZO | C86: VILLENEUVE AV | D86: J13H | E86: H | F86: 2007-06-13 | G86: 0 | H86: 20 | I86: 20 | J86: 10 | K86: 20 | L86: 20 | M86: 20 | N86: 20 | O86: 20 | P86: 20 | Q86: 20 | R86: 30 | S86: 10 | T86: 30 | U86: 10 | V86: 10 | W86: Ergo | X86: 93 | Z86: 280 | AA86: 46.5 | AB86: 326.5 | AC86: MAYOR ENZO | AD86: VILLENEUVE AV
B87: SPECOGNA LOUIS | C87: MARMANDE AV | D87: J13H | E87: H | F87: 2007-12-22 | G87: 40 | H87: 10 | I87: 20 | J87: 20 | K87: 10 | L87: 10 | M87: 20 | N87: 20 | O87: 20 | P87: 20 | Q87: 20 | R87: 10 | S87: 10 | T87: 20 | U87: 30 | V87: 0 | W87: Ergo | X87: 88 | Y87: 40 | Z87: 240 | AA87: 44 | AB87: 324 | AC87: SPECOGNA LOUIS | AD87: MARMANDE AV
B88: BATLO ARTHUR | C88: LIBOURNE CN | D88: J13H | E88: H | F88: 2007-11-07 | G88: 40 | H88: 10 | I88: 30 | J88: 10 | K88: 10 | L88: 10 | M88: 10 | N88: 0 | O88: 20 | P88: 20 | Q88: 10 | R88: 20 | S88: 10 | T88: 30 | U88: 30 | V88: 10 | W88: Ergo | X88: 95 | Y88: 40 | Z88: 230 | AA88: 47.5 | AB88: 317.5 | AC88: BATLO ARTHUR | AD88: LIBOURNE CN
B89: MESSAUSSIER PAULIN | C89: SAINT SYLVESTRE CN | D89: J13H | E89: H | F89: 2007-05-17 | G89: 40 | H89: 10 | I89: 20 | J89: 10 | K89: 10 | L89: 20 | M89: 10 | N89: 10 | O89: 30 | P89: 10 | Q89: 10 | R89: 20 | S89: 10 | T89: 10 | U89: 20 | V89: 10 | W89: Ergo | X89: 78 | Y89: 40 | Z89: 210 | AA89: 39 | AB89: 289 | AC89: MESSAUSSIER PAULIN | AD89: SAINT SYLVESTRE CN
B90: FAURE MAX | C90: BORDEAUX EN | D90: J13H | E90: H | F90: 2007-02-14 | G90: 40 | H90: 10 | I90: 30 | J90: 10 | K90: 10 | L90: 0 | M90: 10 | N90: 20 | O90: 10 | P90: 10 | Q90: 10 | R90: 10 | S90: 10 | T90: 20 | U90: 10 | V90: 0 | W90: Ergo | X90: 77 | Y90: 40 | Z90: 170 | AA90: 38.5 | AB90: 248.5 | AC90: FAURE MAX | AD90: BORDEAUX EN
B91: BOUZIANE WALID | C91: BERGERAC SN | D91: J13H | E91: H | F91: 2007-06-26 | G91: 40 | H91: 10 | I91: 10 | J91: 10 | K91: 10 | L91: 10 | M91: 10 | N91: 10 | O91: 10 | P91: 10 | Q91: 10 | R91: 10 | S91: 10 | T91: 20 | U91: 20 | V91: 0 | W91: Ergo | X91: 82 | Y91: 40 | Z91: 160 | AA91: 41 | AB91: 241 | AC91: BOUZIANE WALID | AD91: BERGERAC SN
B92: CHAULET TOM | C92: BORDEAUX EN | D92: J13H | E92: H | F92: 2007-02-13 | G92: 40 | H92: 10 | I92: 10 | J92: 10 | K92: 20 | L92: 0 | M92: 10 | N92: 20 | O92: 0 | P92: 10 | Q92: 10 | R92: 0 | S92: 0 | T92: 20 | U92: 10 | V92: 0 | W92: Ergo | X92: 104 | Y92: 40 | Z92: 130 | AA92: 52 | AB92: 222 | AC92: CHAULET TOM | AD92: BORDEAUX EN
B93: LEYRIS JEAN CHARLES | C93: MARMANDE AV | D93: J13H | E93: H | F93: 2007-05-21 | G93: 40 | H93: 10 | I93: 10 | J93: 10 | K93: 10 | L93: 0 | M93: 10 | N93: 20 | O93: 10 | P93: 10 | Q93: 10 | R93: 0 | S93: 0 | T93: 10 | U93: 30 | V93: 0 | W93: Ergo | X93: 71 | Y93: 40 | Z93: 140 | AA93: 35.5 | AB93: 215.5 | AC93: LEYRIS JEAN CHARLES | AD93: MARMANDE AV
B94: LE FRANC NATHAN | C94: BORDEAUX EN | D94: J13H | E94: H | F94: 2007-02-17 | G94: 40 | H94: 10 | I94: 20 | J94: 10 | K94: 10 | L94: 10 | M94: 10 | N94: 20 | O94: 10 | P94: 10 | Q94: 10 | R94: 10 | S94: 0 | T94: 10 | U94: 10 | V94: 0 | W94: Course + Ergo | X94: 4 | Y94: 40 | Z94: 150 | AA94: 4 | AB94: 194 | AC94: LE FRANC NATHAN | AD94: BORDEAUX EN
B95: DUTRIEZ STEVEN | C95: BERGERAC SN | D95: J13H | E95: H | F95: 2007-06-05 | Z95: 0 | AB95: 0 | AC95: DUTRIEZ STEVEN | AD95: BERGERAC SN
B96: GILLERON TIAGO | C96: VILLENEUVE AV | D96: J13H | E96: H | F96: 2007-01-29 | Z96: 0 | AB96: 0 | AC96: GILLERON TIAGO | AD96: VILLENEUVE AV
B97: LABASSE MATHEO | C97: LIBOURNE CN | D97: J13H | E97: H | F97: 2007-02-16 | Z97: 0 | AB97: 0 | AC97: LABASSE MATHEO | AD97: LIBOURNE CN
B98: VIDEAU LOUIS | C98: BERGERAC SN | D98: J13H | E98: H | F98: 2007-01-11 | Z98: 0 | AB98: 0 | AC98: VIDEAU LOUIS | AD98: BERGERAC SN
B99: DINU CELIA | C99: LIBOURNE CN | D99: J14F | E99: F | F99: 2006-03-23 | G99: 40 | H99: 20 | I99: 30 | J99: 30 | K99: 20 | L99: 30 | M99: 30 | N99: 30 | O99: 30 | P99: 30 | Q99: 20 | R99: 30 | S99: 0 | T99: 30 | U99: 30 | V99: 10 | W99: Ergo | X99: 112 | Y99: 40 | Z99: 370 | AA99: 56 | AB99: 466 | AC99: DINU CELIA | AD99: LIBOURNE CN
B100: JARJANETTE CHLOE | C100: BERGERAC SN | D100: J14F | E100: F | F100: 2006-05-18 | G100: 40 | H100: 10 | I100: 30 | J100: 20 | K100: 20 | L100: 30 | M100: 30 | N100: 30 | O100: 30 | P100: 20 | Q100: 30 | R100: 30 | S100: 10 | T100: 30 | U100: 30 | V100: 10 | W100: Ergo | X100: 130 | Y100: 40 | Z100: 360 | AA100: 65 | AB100: 465 | AC100: JARJANETTE CHLOE | AD100: BERGERAC SN
B101: BRY EMMIE | C101: BERGERAC SN | D101: J14F | E101: F | F101: 2006-03-08 | G101: 40 | H101: 10 | I101: 30 | J101: 20 | K101: 20 | L101: 30 | M101: 30 | N101: 30 | O101: 30 | P101: 20 | Q101: 30 | R101: 30 | S101: 10 | T101: 30 | U101: 30 | V101: 10 | W101: Ergo | X101: 129 | Y101: 40 | Z101: 360 | AA101: 64.5 | AB101: 464.5 | AC101: BRY EMMIE | AD101: BERGERAC SN
B102: BRY CELIA | C102: BERGERAC SN | D102: J14F | E102: F | F102: 2006-03-08 | G102: 40 | H102: 10 | I102: 30 | J102: 20 | K102: 20 | L102: 30 | M102: 30 | N102: 30 | O102: 30 | P102: 20 | Q102: 30 | R102: 30 | S102: 10 | T102: 30 | U102: 30 | V102: 10 | W102: Ergo | X102: 126 | Y102: 40 | Z102: 360 | AA102: 63 | AB102: 463 | AC102: BRY CELIA | AD102: BERGERAC SN
B103: FRANCONIE MAELYS | C103: VILLENEUVE AV | D103: J14F | E103: F | F103: 2006-05-15 | G103: 40 | H103: 10 | I103: 30 | J103: 20 | K103: 30 | L103: 30 | M103: 30 | N103: 30 | O103: 30 | P103: 20 | Q103: 20 | R103: 30 | S103: 10 | T103: 30 | U103: 30 | V103: 10 | W103: Ergo | X103: 106 | Y103: 40 | Z103: 360 | AA103: 53 | AB103: 453 | AC103: FRANCONIE MAELYS | AD103: VILLENEUVE AV
B104: JANKOWSKI CAROLINE | C104: LIBOURNE CN | D104: J14F | E104: F | F104: 2006-05-23 | G104: 40 | H104: 20 | I104: 30 | J104: 30 | K104: 30 | L104: 20 | M104: 30 | N104: 30 | O104: 20 | P104: 30 | Q104: 10 | R104: 30 | S104: 20 | T104: 30 | U104: 30 | V104: 0 | W104: Ergo | X104: 105 | Y104: 40 | Z104: 360 | AA104: 52.5 | AB104: 452.5 | AC104: JANKOWSKI CAROLINE | AD104: LIBOURNE CN
B105: RICARDO MORGAN | C105: VILLENEUVE AV | D105: J14F | E105: F | F105: 2006-06-16 | G105: 40 | H105: 20 | I105: 30 | J105: 10 | K105: 30 | L105: 20 | M105: 20 | N105: 30 | O105: 30 | P105: 30 | Q105: 30 | R105: 30 | S105: 10 | T105: 20 | U105: 30 | V105: 10 | W105: Ergo | X105: 109 | Y105: 40 | Z105: 350 | AA105: 54.5 | AB105: 444.5 | AC105: RICARDO MORGAN | AD105: VILLENEUVE AV
B106: CHATELIER BLANCHE | C106: BORDEAUX EN | D106: J14F | E106: F | F106: 2006-01-06 | G106: 40 | H106: 20 | I106: 30 | J106: 30 | K106: 20 | L106: 20 | M106: 20 | N106: 20 | O106: 20 | P106: 30 | Q106: 20 | R106: 30 | S106: 10 | T106: 30 | U106: 30 | V106: 10 | W106: Ergo | X106: 95 | Y106: 40 | Z106: 340 | AA106: 47.5 | AB106: 427.5 | AC106: CHATELIER BLANCHE | AD106: BORDEAUX EN
B107: SAMSON JEANNE | C107: BORDEAUX EN | D107: J14F | E107: F | F107: 2006-04-15 | G107: 40 | H107: 20 | I107: 30 | J107: 30 | K107: 20 | L107: 20 | M107: 20 | N107: 30 | O107: 30 | P107: 20 | Q107: 10 | R107: 30 | S107: 10 | T107: 20 | U107: 30 | V107: 10 | W107: Ergo | X107: 111 | Y107: 40 | Z107: 330 | AA107: 55.5 | AB107: 425.5 | AC107: SAMSON JEANNE | AD107: BORDEAUX EN
B108: CARPENE MARIE-ANGE | C108: MARMANDE AV | D108: =IF(B108<>"","J"&(($F$11)-(YEAR(F108)))&E108,"") -> J14F | E108: F | F108: 2006-04-07 | G108: 40 | H108: 10 | I108: 30 | J108: 20 | K108: 10 | L108: 30 | M108: 20 | N108: 30 | O108: 30 | P108: 20 | Q108: 10 | R108: 30 | S108: 10 | T108: 30 | U108: 30 | V108: 10 | W108: Ergo | X108: 127 | Y108: =IF(G108>0,G108,"") -> 40 | Z108: =SUM(H108:V108) -> 320 | AA108: =IF(W108="Ergo",X108/2,IF(W108="Course + Ergo",X108,"")) -> 63.5 | AB108: =SUM(Y108:AA108) -> 423.5 | AC108: =IF(B108<>"",B108,"") -> CARPENE MARIE-ANGE | AD108: =+C108 -> MARMANDE AV
B109: LANOS JULIETTE | C109: BORDEAUX EN | D109: J14F | E109: F | F109: 2006-10-26 | G109: 40 | H109: 20 | I109: 30 | J109: 20 | K109: 30 | L109: 10 | M109: 20 | N109: 20 | O109: 20 | P109: 20 | Q109: 20 | R109: 20 | S109: 10 | T109: 20 | U109: 30 | V109: 10 | W109: Ergo | X109: 108 | Y109: 40 | Z109: 300 | AA109: 54 | AB109: 394 | AC109: LANOS JULIETTE | AD109: BORDEAUX EN
B110: TOURNEZY NEHIKA | C110: VILLENEUVE AV | D110: J14F | E110: F | F110: 2006-08-12 | G110: 40 | H110: 10 | I110: 30 | J110: 10 | K110: 30 | L110: 20 | M110: 20 | N110: 30 | O110: 20 | P110: 20 | Q110: 20 | R110: 30 | S110: 10 | T110: 20 | U110: 30 | V110: 0 | W110: Ergo | X110: 106 | Y110: 40 | Z110: 300 | AA110: 53 | AB110: 393 | AC110: TOURNEZY NEHIKA | AD110: VILLENEUVE AV
B111: VERDIERE CASSIOPEE | C111: BORDEAUX EN | D111: J14F | E111: F | F111: 2006-08-01 | G111: 40 | H111: 10 | I111: 30 | J111: 20 | K111: 20 | L111: 10 | M111: 20 | N111: 20 | O111: 20 | P111: 20 | Q111: 10 | R111: 20 | S111: 10 | T111: 30 | U111: 30 | V111: 20 | W111: Ergo | X111: 114 | Y111: 40 | Z111: 290 | AA111: 57 | AB111: 387 | AC111: VERDIERE CASSIOPEE | AD111: BORDEAUX EN
B112: TAUZIN ROMANE | C112: MARMANDE AV | D112: J14F | E112: F | F112: 2006-09-24 | G112: 40 | H112: 10 | I112: 30 | J112: 20 | K112: 10 | L112: 20 | M112: 20 | N112: 30 | O112: 20 | P112: 20 | Q112: 10 | R112: 20 | S112: 10 | T112: 30 | U112: 30 | V112: 0 | W112: Ergo | X112: 107 | Y112: 40 | Z112: 280 | AA112: 53.5 | AB112: 373.5 | AC112: TAUZIN ROMANE | AD112: MARMANDE AV
B113: GALLAND HELINE | C113: VILLENEUVE AV | D113: J14F | E113: F | F113: 2006-04-26 | G113: 40 | H113: 10 | I113: 30 | J113: 10 | K113: 10 | L113: 10 | M113: 20 | N113: 30 | O113: 30 | P113: 20 | Q113: 20 | R113: 30 | S113: 10 | T113: 10 | U113: 20 | V113: 10 | W113: Ergo | X113: 111 | Y113: 40 | Z113: 270 | AA113: 55.5 | AB113: 365.5 | AC113: GALLAND HELINE | AD113: VILLENEUVE AV
B114: DEMAIZIERE ELISE | C114: MARMANDE AV | D114: J14F | E114: F | F114: 2006-12-25 | G114: 40 | H114: 10 | I114: 30 | J114: 20 | K114: 10 | L114: 0 | M114: 10 | N114: 20 | O114: 20 | P114: 20 | Q114: 20 | R114: 20 | S114: 10 | T114: 20 | U114: 30 | V114: 0 | W114: Ergo | X114: 86 | Y114: 40 | Z114: 240 | AA114: 43 | AB114: 323 | AC114: DEMAIZIERE ELISE | AD114: MARMANDE AV
B115: GONZALEZ MAIA | C115: VILLENEUVE AV | D115: J14F | E115: F | F115: 2006-07-02 | G115: 40 | H115: 10 | I115: 30 | J115: 10 | K115: 10 | L115: 0 | M115: 20 | N115: 20 | O115: 20 | P115: 20 | Q115: 10 | R115: 20 | S115: 10 | T115: 10 | U115: 20 | V115: 10 | W115: Ergo | X115: 98 | Y115: 40 | Z115: 220 | AA115: 49 | AB115: 309 | AC115: GONZALEZ MAIA | AD115: VILLENEUVE AV
B116: DUPUY MARINE | C116: LIBOURNE CN | D116: J14F | E116: F | F116: 2006-04-15 | G116: 40 | H116: 10 | I116: 30 | J116: 10 | K116: 10 | L116: 10 | M116: 20 | N116: 30 | O116: 10 | P116: 10 | Q116: 10 | R116: 30 | S116: 10 | T116: 10 | U116: 10 | V116: 0 | W116: Ergo | X116: 83 | Y116: 40 | Z116: 210 | AA116: 41.5 | AB116: 291.5 | AC116: DUPUY MARINE | AD116: LIBOURNE CN
B117: DANGUIR LILA -ANAYA | C117: MARMANDE AV | D117: J14F | E117: F | F117: 2006-12-26 | G117: 40 | H117: 10 | I117: 20 | J117: 20 | K117: 10 | L117: 0 | M117: 20 | N117: 0 | O117: 10 | P117: 20 | Q117: 20 | R117: 10 | S117: 10 | T117: 20 | U117: 30 | V117: 0 | W117: Ergo | X117: 95 | Y117: 40 | Z117: 200 | AA117: 47.5 | AB117: 287.5 | AC117: DANGUIR LILA -ANAYA | AD117: MARMANDE AV
B118: LIENERE LILOU | C118: BORDEAUX EN | D118: J14F | E118: F | F118: 2006-06-02 | G118: 40 | H118: 10 | I118: 20 | J118: 10 | K118: 10 | L118: 10 | M118: 20 | N118: 20 | O118: 20 | P118: 10 | Q118: 10 | R118: 10 | S118: 10 | T118: 10 | U118: 30 | V118: 0 | W118: Ergo | X118: 90 | Y118: 40 | Z118: 200 | AA118: 45 | AB118: 285 | AC118: LIENERE LILOU | AD118: BORDEAUX EN
B119: LACUEILLE ZOE | C119: LIBOURNE CN | D119: J14F | E119: F | F119: 2006-02-17 | G119: 40 | H119: 10 | I119: 0 | J119: 0 | K119: 10 | L119: 0 | M119: 30 | N119: 30 | O119: 0 | P119: 10 | Q119: 10 | R119: 0 | S119: 10 | T119: 20 | U119: 0 | V119: 0 | W119: Ergo | X119: 117 | Y119: 40 | Z119: 130 | AA119: 58.5 | AB119: 228.5 | AC119: LACUEILLE ZOE | AD119: LIBOURNE CN
B120: GAUDRY SARAH | C120: VILLENEUVE AV | D120: J14F | E120: F | F120: 2006-05-25 | G120: 40 | H120: 10 | I120: 20 | J120: 10 | K120: 10 | L120: 0 | M120: 10 | N120: 10 | O120: 10 | P120: 10 | Q120: 10 | R120: 10 | S120: 10 | T120: 10 | U120: 10 | V120: 0 | W120: Ergo | X120: 84 | Y120: 40 | Z120: 140 | AA120: 42 | AB120: 222 | AC120: GAUDRY SARAH | AD120: VILLENEUVE AV
B121: KOZLOWSKA OLIWIA | C121: MARMANDE AV | D121: J14F | E121: F | F121: 2006-03-26 | G121: 40 | H121: 10 | I121: 30 | J121: 20 | K121: 10 | L121: 20 | M121: 20 | N121: 0 | O121: 0 | P121: 0 | Q121: 0 | R121: 0 | S121: 0 | T121: 0 | U121: 0 | V121: 0 | W121: Ergo | X121: 0 | Y121: 40 | Z121: 110 | AA121: 0 | AB121: 150 | AC121: KOZLOWSKA OLIWIA | AD121: MARMANDE AV
B122: BATOGE CHLOE | C122: BORDEAUX EN | D122: J14F | E122: F | F122: 2006-01-20 | Z122: 0 | AB122: 0 | AC122: BATOGE CHLOE | AD122: BORDEAUX EN
B123: CHAMINADE CHLOE | C123: LIBOURNE CN | D123: J14F | E123: F | F123: 2006-03-29 | W123: Ergo | Z123: 0 | AA123: 0 | AB123: 0 | AC123: CHAMINADE CHLOE | AD123: LIBOURNE CN
B124: HOEKSTRA MAYRA | C124: LIBOURNE CN | D124: J14F | E124: F | F124: 2006-08-24 | W124: Ergo | Z124: 0 | AA124: 0 | AB124: 0 | AC124: HOEKSTRA MAYRA | AD124: LIBOURNE CN
B125: GOURC MERLIN | C125: BORDEAUX EN | D125: J14H | E125: H | F125: 2006-05-14 | G125: 40 | H125: 30 | I125: 30 | J125: 30 | K125: 30 | L125: 30 | M125: 30 | N125: 30 | O125: 30 | P125: 30 | Q125: 30 | R125: 30 | S125: 20 | T125: 30 | U125: 30 | V125: 10 | W125: Ergo | X125: 148 | Y125: 40 | Z125: 420 | AA125: 74 | AB125: 534 | AC125: GOURC MERLIN | AD125: BORDEAUX EN
B126: HAICAGUERRE GABRIEL | C126: LIBOURNE CN | D126: J14H | E126: H | F126: 2006-11-24 | G126: 40 | H126: 30 | I126: 30 | J126: 30 | K126: 30 | L126: 30 | M126: 30 | N126: 30 | O126: 30 | P126: 30 | Q126: 30 | R126: 30 | S126: 30 | T126: 30 | U126: 30 | V126: 10 | W126: Ergo | X126: 127 | Y126: 40 | Z126: 430 | AA126: 63.5 | AB126: 533.5 | AC126: HAICAGUERRE GABRIEL | AD126: LIBOURNE CN
B127: VERGNE CLEMENT | C127: LIBOURNE CN | D127: J14H | E127: H | F127: 2006-05-08 | G127: 40 | H127: 30 | I127: 30 | J127: 30 | K127: 30 | L127: 30 | M127: 30 | N127: 30 | O127: 30 | P127: 30 | Q127: 30 | R127: 30 | S127: 10 | T127: 30 | U127: 30 | V127: 10 | W127: Ergo | X127: 149 | Y127: 40 | Z127: 410 | AA127: 74.5 | AB127: 524.5 | AC127: VERGNE CLEMENT | AD127: LIBOURNE CN
B128: CAZEAU JUSTIN | C128: SAINT SYLVESTRE CN | D128: J14H | E128: H | F128: 2006-06-02 | G128: 40 | H128: 30 | I128: 30 | J128: 30 | K128: 30 | L128: 30 | M128: 30 | N128: 30 | O128: 30 | P128: 30 | Q128: 30 | R128: 30 | S128: 10 | T128: 30 | U128: 30 | V128: 10 | W128: Ergo | X128: 137 | Y128: 40 | Z128: 410 | AA128: 68.5 | AB128: 518.5 | AC128: CAZEAU JUSTIN | AD128: SAINT SYLVESTRE CN
B129: MERCADIER ALBAN | C129: VILLENEUVE AV | D129: J14H | E129: H | F129: 2006-09-06 | G129: 40 | H129: 30 | I129: 30 | J129: 20 | K129: 30 | L129: 30 | M129: 30 | N129: 30 | O129: 30 | P129: 30 | Q129: 30 | R129: 30 | S129: 10 | T129: 30 | U129: 30 | V129: 10 | W129: Ergo | X129: 151 | Y129: 40 | Z129: 400 | AA129: 75.5 | AB129: 515.5 | AC129: MERCADIER ALBAN | AD129: VILLENEUVE AV
B130: COLDEBOEUF LUIGY | C130: BERGERAC SN | D130: J14H | E130: H | F130: 2006-03-16 | G130: 40 | H130: 30 | I130: 30 | J130: 30 | K130: 30 | L130: 30 | M130: 30 | N130: 30 | O130: 30 | P130: 30 | Q130: 30 | R130: 30 | S130: 10 | T130: 30 | U130: 30 | V130: 0 | W130: Ergo | X130: 147 | Y130: 40 | Z130: 400 | AA130: 73.5 | AB130: 513.5 | AC130: COLDEBOEUF LUIGY | AD130: BERGERAC SN
B131: ALVES MATHIEU | C131: MARMANDE AV | D131: J14H | E131: H | F131: 2006-02-27 | G131: 40 | H131: 30 | I131: 30 | J131: 30 | K131: 30 | L131: 30 | M131: 30 | N131: 30 | O131: 30 | P131: 30 | Q131: 30 | R131: 30 | S131: 20 | T131: 30 | U131: 30 | V131: 0 | W131: Ergo | X131: 127 | Y131: 40 | Z131: 410 | AA131: 63.5 | AB131: 513.5 | AC131: ALVES MATHIEU | AD131: MARMANDE AV
B132: LANDI RUSLANS | C132: BORDEAUX EN | D132: J14H | E132: H | F132: 2006-02-05 | G132: 40 | H132: 30 | I132: 30 | J132: 30 | K132: 30 | L132: 20 | M132: 20 | N132: 30 | O132: 30 | P132: 20 | Q132: 30 | R132: 30 | S132: 20 | T132: 30 | U132: 20 | V132: 10 | W132: Ergo | X132: 103 | Y132: 40 | Z132: 380 | AA132: 51.5 | AB132: 471.5 | AC132: LANDI RUSLANS | AD132: BORDEAUX EN
B133: SARRAUTE BAPTISTE | C133: BORDEAUX EN | D133: J14H | E133: H | F133: 2006-05-03 | G133: 40 | H133: 30 | I133: 30 | J133: 20 | K133: 20 | L133: 20 | M133: 30 | N133: 30 | O133: 30 | P133: 30 | Q133: 30 | R133: 30 | S133: 10 | T133: 30 | U133: 20 | V133: 10 | W133: Ergo | X133: 115 | Y133: 40 | Z133: 370 | AA133: 57.5 | AB133: 467.5 | AC133: SARRAUTE BAPTISTE | AD133: BORDEAUX EN
B134: MARTIN TOM | C134: BERGERAC SN | D134: J14H | E134: H | F134: 2006-08-01 | G134: 40 | H134: 20 | I134: 30 | J134: 30 | K134: 30 | L134: 30 | M134: 20 | N134: 30 | O134: 30 | P134: 20 | Q134: 20 | R134: 30 | S134: 10 | T134: 30 | U134: 30 | V134: 0 | W134: Ergo | X134: 123 | Y134: 40 | Z134: 360 | AA134: 61.5 | AB134: 461.5 | AC134: MARTIN TOM | AD134: BERGERAC SN
B135: CALLEGARIN MAORO | C135: LIBOURNE CN | D135: J14H | E135: H | F135: 2006-11-30 | G135: 40 | H135: 20 | I135: 30 | J135: 30 | K135: 20 | L135: 30 | M135: 30 | N135: 30 | O135: 20 | P135: 30 | Q135: 30 | R135: 30 | S135: 10 | T135: 30 | U135: 30 | V135: 0 | W135: Ergo | X135: 95 | Y135: 40 | Z135: 370 | AA135: 47.5 | AB135: 457.5 | AC135: CALLEGARIN MAORO | AD135: LIBOURNE CN
B136: HUSSON GAUTHIER | C136: VILLENEUVE AV | D136: J14H | E136: H | F136: 2006-02-18 | G136: 40 | H136: 20 | I136: 30 | J136: 20 | K136: 20 | L136: 30 | M136: 30 | N136: 30 | O136: 30 | P136: 30 | Q136: 30 | R136: 30 | S136: 10 | T136: 20 | U136: 30 | V136: 10 | W136: Ergo | X136: 73 | Y136: 40 | Z136: 370 | AA136: 36.5 | AB136: 446.5 | AC136: HUSSON GAUTHIER | AD136: VILLENEUVE AV
B137: NAVARRO WILLIAM | C137: BERGERAC SN | D137: J14H | E137: H | F137: 2006-06-02 | G137: 40 | H137: 20 | I137: 30 | J137: 30 | K137: 20 | L137: 20 | M137: 30 | N137: 30 | O137: 30 | P137: 20 | Q137: 20 | R137: 30 | S137: 10 | T137: 20 | U137: 30 | V137: 10 | W137: Ergo | X137: 110 | Y137: 40 | Z137: 350 | AA137: 55 | AB137: 445 | AC137: NAVARRO WILLIAM | AD137: BERGERAC SN
B138: BONTE GABIN | C138: MARMANDE AV | D138: J14H | E138: H | F138: 2006-05-15 | G138: 40 | H138: 20 | I138: 30 | J138: 30 | K138: 20 | L138: 30 | M138: 20 | N138: 30 | O138: 30 | P138: 20 | Q138: 20 | R138: 20 | S138: 10 | T138: 20 | U138: 30 | V138: 10 | W138: Ergo | X138: 103 | Y138: 40 | Z138: 340 | AA138: 51.5 | AB138: 431.5 | AC138: BONTE GABIN | AD138: MARMANDE AV
B139: MILLOT JULES | C139: BERGERAC SN | D139: J14H | E139: H | F139: 2006-09-13 | G139: 40 | H139: 10 | I139: 30 | J139: 30 | K139: 20 | L139: 30 | M139: 20 | N139: 20 | O139: 30 | P139: 20 | Q139: 20 | R139: 30 | S139: 10 | T139: 20 | U139: 30 | V139: 0 | W139: Ergo | X139: 109 | Y139: 40 | Z139: 320 | AA139: 54.5 | AB139: 414.5 | AC139: MILLOT JULES | AD139: BERGERAC SN
B140: BORSATO TOM | C140: MARMANDE AV | D140: =IF(B140<>"","J"&(($F$11)-(YEAR(F140)))&E140,"") -> J14H | E140: H | F140: 2006-05-10 | G140: 40 | H140: 20 | I140: 30 | J140: 20 | K140: 10 | L140: 30 | M140: 20 | N140: 20 | O140: 30 | P140: 20 | Q140: 30 | R140: 20 | S140: 10 | T140: 20 | U140: 30 | V140: 10 | W140: Ergo | X140: 96 | Y140: =IF(G140>0,G140,"") -> 40 | Z140: =SUM(H140:V140) -> 320 | AA140: =IF(W140="Ergo",X140/2,IF(W140="Course + Ergo",X140,"")) -> 48 | AB140: =SUM(Y140:AA140) -> 408 | AC140: =IF(B140<>"",B140,"") -> BORSATO TOM | AD140: =+C140 -> MARMANDE AV
B141: LEWIN COLLIN | C141: BERGERAC SN | D141: J14H | E141: H | F141: 2006-06-03 | G141: 40 | H141: 20 | I141: 30 | J141: 20 | K141: 20 | L141: 10 | M141: 20 | N141: 20 | O141: 30 | P141: 20 | Q141: 20 | R141: 20 | S141: 10 | T141: 30 | U141: 30 | V141: 10 | W141: Ergo | X141: 100 | Y141: 40 | Z141: 310 | AA141: 50 | AB141: 400 | AC141: LEWIN COLLIN | AD141: BERGERAC SN
B142: LAPARRE MAEL | C142: VILLENEUVE AV | D142: J14H | E142: H | F142: 2006-10-07 | G142: 40 | H142: 20 | I142: 20 | J142: 10 | K142: 20 | L142: 20 | M142: 20 | N142: 20 | O142: 20 | P142: 20 | Q142: 30 | R142: 20 | S142: 10 | T142: 30 | U142: 20 | V142: 10 | W142: Ergo | X142: 97 | Y142: 40 | Z142: 290 | AA142: 48.5 | AB142: 378.5 | AC142: LAPARRE MAEL | AD142: VILLENEUVE AV
B143: CESBRON LOSON | C143: BERGERAC SN | D143: J14H | E143: H | F143: 2006-08-31 | G143: 40 | H143: 20 | I143: 20 | J143: 30 | K143: 20 | L143: 20 | M143: 20 | N143: 20 | O143: 20 | P143: 20 | Q143: 20 | R143: 20 | S143: 10 | T143: 20 | U143: 20 | V143: 0 | W143: Ergo | X143: 108 | Y143: 40 | Z143: 280 | AA143: 54 | AB143: 374 | AC143: CESBRON LOSON | AD143: BERGERAC SN
B144: JACQUES REMI | C144: LIBOURNE CN | D144: J14H | E144: H | F144: 2006-06-26 | G144: 40 | H144: 10 | I144: 30 | J144: 20 | K144: 10 | L144: 10 | M144: 30 | N144: 30 | O144: 20 | P144: 20 | Q144: 20 | R144: 30 | S144: 10 | T144: 10 | U144: 30 | V144: 0 | W144: Ergo | X144: 107 | Y144: 40 | Z144: 280 | AA144: 53.5 | AB144: 373.5 | AC144: JACQUES REMI | AD144: LIBOURNE CN
B145: GLENADEL DYLAN | C145: SAINT SYLVESTRE CN | D145: J14H | E145: H | F145: 2006-06-16 | G145: 40 | H145: 20 | I145: 20 | J145: 20 | K145: 20 | L145: 20 | M145: 30 | N145: 30 | O145: 20 | P145: 10 | Q145: 10 | R145: 20 | S145: 10 | T145: 10 | U145: 30 | V145: 10 | W145: Ergo | X145: 94 | Y145: 40 | Z145: 280 | AA145: 47 | AB145: 367 | AC145: GLENADEL DYLAN | AD145: SAINT SYLVESTRE CN
B146: KENNOUCH HATIM | C146: VILLENEUVE AV | D146: J14H | E146: H | F146: 2006-09-26 | G146: 40 | H146: 20 | I146: 20 | J146: 10 | K146: 10 | L146: 30 | M146: 20 | N146: 20 | O146: 30 | P146: 20 | Q146: 10 | R146: 20 | S146: 10 | T146: 20 | U146: 10 | V146: 10 | W146: Ergo | X146: 90 | Y146: 40 | Z146: 260 | AA146: 45 | AB146: 345 | AC146: KENNOUCH HATIM | AD146: VILLENEUVE AV
B147: THEPAULT ANCILLON MARIN | C147: BORDEAUX EN | D147: J14H | E147: H | F147: 2006-05-04 | G147: 40 | H147: 10 | I147: 30 | J147: 20 | K147: 20 | L147: 10 | M147: 20 | N147: 30 | O147: 20 | P147: 10 | Q147: 20 | R147: 10 | S147: 10 | T147: 20 | U147: 10 | V147: 0 | W147: Ergo | X147: 89 | Y147: 40 | Z147: 240 | AA147: 44.5 | AB147: 324.5 | AC147: THEPAULT ANCILLON MARIN | AD147: BORDEAUX EN
B148: PAUTHIER TONY | C148: MARMANDE AV | D148: J14H | E148: H | F148: 2006-12-04 | G148: 40 | H148: 20 | I148: 20 | J148: 20 | K148: 10 | L148: 0 | M148: 20 | N148: 20 | O148: 10 | P148: 20 | Q148: 20 | R148: 20 | S148: 10 | T148: 20 | U148: 30 | V148: 10 | W148: Ergo | X148: 69 | Y148: 40 | Z148: 250 | AA148: 34.5 | AB148: 324.5 | AC148: PAUTHIER TONY | AD148: MARMANDE AV
B149: FERIOT LUCAS | C149: BORDEAUX EN | D149: J14H | E149: H | F149: 2006-09-20 | G149: 40 | H149: 10 | I149: 20 | J149: 20 | K149: 10 | L149: 10 | M149: 20 | N149: 20 | O149: 10 | P149: 20 | Q149: 10 | R149: 20 | S149: 10 | T149: 20 | U149: 10 | V149: 0 | W149: Ergo | X149: 114 | Y149: 40 | Z149: 210 | AA149: 57 | AB149: 307 | AC149: FERIOT LUCAS | AD149: BORDEAUX EN
B150: BARDINET HENRI | C150: LIBOURNE CN | D150: J14H | E150: H | F150: 2006-03-15 | W150: Ergo | Z150: 0 | AA150: 0 | AB150: 0 | AC150: BARDINET HENRI | AD150: LIBOURNE CN
B151: BULTEAU ANTOINE | C151: LIBOURNE CN | D151: J14H | E151: H | F151: 2006-06-21 | W151: Ergo | Z151: 0 | AA151: 0 | AB151: 0 | AC151: BULTEAU ANTOINE | AD151: LIBOURNE CN
B152: NICOL CORENTIN | C152: BORDEAUX EN | D152: J14H | E152: H | F152: 2006-05-13 | W152: Ergo | Z152: 0 | AA152: 0 | AB152: 0 | AC152: NICOL CORENTIN | AD152: BORDEAUX EN
D153: =IF(B153<>"","J"&(($F$11)-(YEAR(F153)))&E153,"") ->  | Y153: =IF(G153>0,G153,"") ->  | Z153: =IF(H153<>"",IF(ISERROR(IF(E153="F",VLOOKUP(H153,foulees_f,3,TRUE),VLOOKUP(H153,foulees_m,2,TRUE))),0,IF(E153="F",VLOOKUP(H153,foulees_f,3,TRUE),VLOOKUP(H153,foulees_m,2,TRUE))),"") ->  | AA153: =IF(W153="Ergo",X153/2,IF(W153="Course + Ergo",X153,"")) ->  | AB153: =SUM(Y153:AA153) -> 0 | AC153: =IF(B153<>"",B153,"") -> 
AB154: 0
AB155: 0
AB156: 0
AB157: 0
AB158: 0
AB159: 0
AB160: 0
AB161: 0
AB162: 0
AB163: 0
AB164: 0
AB165: 0
AB166: 0
AB167: 0
AB168: 0
AB169: 0
AB170: 0
AB171: 0
AB172: 0
AB173: 0
AB174: 0
AB175: 0
AB176: 0
AB177: 0
AB178: 0
AB179: 0
AB180: 0
AB181: 0
AB182: 0
AB183: 0
AB184: 0
AB185: 0
AB186: 0
AB187: 0
AB188: 0
AB189: 0
AB190: 0
AB191: 0
AB192: 0
AB193: 0
AB194: 0
AB195: 0
AB196: 0
AB197: 0
AB198: 0
AB199: 0
AB200: 0
AB201: 0
AB202: 0
AB203: 0
D204: =IF(B204<>"","J"&(($F$11)-(YEAR(F204)))&E204,"") ->  | Y204: =IF(G204>0,G204,"") ->  | AA204: =IF(W204="Ergo",X204/2,IF(W204="Course + Ergo",X204,"")) ->  | AB204: =SUM(Y204:AA204) -> 0
AB205: 0 | AC205: =IF(B205<>"",B205,"") -> 
... 81 more rows

Sheet Points (hidden)
F1: Liste H & F
B2: TEST N°1 : SAUT EN LONGUEUR SANS ÉLAN | F2: F
B3: BARÈME DE PERFORMANCE (m) | F3: H
B4: Filles | C4: Garçons | D4: Points
B5: 1.15 | C5: 1.4 | D5: 1
B6: 1.2 | C6: 1.45 | D6: 2
B7: 1.25 | C7: 1.5 | D7: 3
B8: 1.3 | C8: 1.55 | D8: 4
B9: 1.35 | C9: 1.6 | D9: 5
B10: 1.4 | C10: 1.65 | D10: 6
B11: 1.45 | C11: 1.7 | D11: 7
B12: 1.5 | C12: 1.75 | D12: 8
B13: 1.55 | C13: 1.8 | D13: 9
B14: 1.6 | C14: 1.85 | D14: 10
B15: 1.65 | C15: 1.9 | D15: 11
B16: 1.7 | C16: 1.95 | D16: 12
B17: 1.75 | C17: 2 | D17: 13
B18: 1.8 | C18: 2.05 | D18: 14
B19: 1.85 | C19: 2.1 | D19: 15
B20: 1.9 | C20: 2.15 | D20: 16
B21: 1.95 | C21: 2.25 | D21: 17
B22: 2 | C22: 2.3 | D22: 18
B23: 2.05 | C23: 2.35 | D23: 19
B24: 2.1 | C24: 2.4 | D24: 20
B25: 3 | C25: 3 | D25: 20
B27: TEST N°2 : 5 FOULÉES BONDISSANTES
B28: BARÈME DE PERFORMANCE (m)
B29: Filles | C29: Garçons | D29: Points
B30: 6.7 | C30: 8.05 | D30: 1
B31: 6.85 | C31: 8.2 | D31: 2
B32: 7 | C32: 8.35 | D32: 3
B33: 7.1 | C33: 8.5 | D33: 4
B34: 7.25 | C34: 8.65 | D34: 5
B35: 7.4 | C35: 8.9 | D35: 6
B36: 7.55 | C36: 9.05 | D36: 7
B37: 7.7 | C37: 9.2 | D37: 8
B38: 7.85 | C38: 9.35 | D38: 9
B39: 8 | C39: 9.5 | D39: 10
B40: 8.15 | C40: 9.65 | D40: 11
B41: 8.3 | C41: 9.8 | D41: 12
B42: 8.45 | C42: 9.95 | D42: 13
B43: 8.6 | C43: 10.1 | D43: 14
B44: 8.75 | C44: 10.25 | D44: 15
B45: 8.9 | C45: 10.4 | D45: 16
B46: 9.05 | C46: 10.55 | D46: 17
B47: 9.2 | C47: 10.7 | D47: 18
B48: 9.35 | C48: 10.85 | D48: 19
B49: 9.5 | C49: 11 | D49: 20
B50: 15 | C50: 15 | D50: 20
B52: TEST N°3 : SAUT EN HAUTEUR SANS ÉLAN
B53: BARÈME DE PERFORMANCE (cm)
B54: Filles | C54: Garçons | D54: Points
B55: - | C55: - | D55: 1
B56: - | C56: - | D56: 2
B57: - | C57: 16 | D57: 3
B58: 8 | C58: 18 | D58: 4
B59: 10 | C59: 20 | D59: 5
B60: 12 | C60: 22 | D60: 6
B61: 14 | C61: 24 | D61: 7
B62: 16 | C62: 26 | D62: 8
B63: 18 | C63: 28 | D63: 9
B64: 20 | C64: 30 | D64: 10
B65: 22 | C65: 32 | D65: 11
B66: 24 | C66: 34 | D66: 12
B67: 26 | C67: 36 | D67: 13
B68: 28 | C68: 38 | D68: 14
B69: 30 | C69: 40 | D69: 15
B70: 32 | C70: 42 | D70: 16
B71: 34 | C71: 44 | D71: 17
B72: 36 | C72: 46 | D72: 18
B73: 38 | C73: 48 | D73: 19
B74: 40 | C74: 50 | D74: 20
B75: 100 | C75: 100 | D75: 20
B77: TEST N°4 : POMPES
B78: BARÈME DE PERFORMANCE (rép.)
B79: Filles | C79: Garçons | D79: Points
B80: 1 | C80: 1 | D80: 1
B81: 2 | C81: 4 | D81: 2
B82: 3 | C82: 7 | D82: 3
B83: 4 | C83: 10 | D83: 4
B84: 5 | C84: 13 | D84: 5
B85: 6 | C85: 16 | D85: 6
B86: 7 | C86: 17 | D86: 7
B87: 8 | C87: 18 | D87: 8
B88: 9 | C88: 19 | D88: 9
B89: 10 | C89: 20 | D89: 10
B90: 11 | C90: 21 | D90: 11
B91: 12 | C91: 22 | D91: 12
B92: 13 | C92: 23 | D92: 13
B93: 14 | C93: 24 | D93: 14
B94: 15 | C94: 25 | D94: 15
B95: 16 | C95: 26 | D95: 16
B96: 17 | C96: 27 | D96: 17
B97: 18 | C97: 28 | D97: 18
B98: 19 | C98: 29 | D98: 19
B99: 20 | C99: 30 | D99: 20
B100: 50 | C100: 50 | D100: 20
B102: TEST N°5 : ABDOMINAUX
B103: BARÈME DE PERFORMANCE (rép.)
B104: Filles | C104: Garçons | D104: Points
B105: 4 | C105: 4 | D105: 1
B106: 8 | C106: 8 | D106: 2
B107: 12 | C107: 12 | D107: 3
B108: 16 | C108: 16 | D108: 4
B109: 20 | C109: 20 | D109: 5
B110: 21 | C110: 21 | D110: 6
B111: 22 | C111: 22 | D111: 7
B112: 23 | C112: 23 | D112: 8
B113: 24 | C113: 24 | D113: 9
B114: 25 | C114: 25 | D114: 10
B115: 26 | C115: 26 | D115: 11
B116: 27 | C116: 27 | D116: 12
B117: 28 | C117: 28 | D117: 13
B118: 29 | C118: 29 | D118: 14
B119: 30 | C119: 30 | D119: 15
B120: 31 | C120: 31 | D120: 16
B121: 32 | C121: 32 | D121: 17
B122: 33 | C122: 33 | D122: 18
B123: 34 | C123: 34 | D123: 19
B124: 35 | C124: 35 | D124: 20
B125: 100 | C125: 100 | D125: 20
B127: TEST N°6 : ERGO - 5 COUPS MAX
B128: BARÈME DE PERFORMANCE (W)
B129: Filles | C129: Garçons | D129: Points
B130: 210 | C130: 240 | D130: 1
B131: 220 | C131: 250 | D131: 2
B132: 230 | C132: 260 | D132: 3
B133: 240 | C133: 270 | D133: 4
B134: 250 | C134: 280 | D134: 5
B135: 260 | C135: 290 | D135: 6
B136: 270 | C136: 300 | D136: 7
B137: 280 | C137: 310 | D137: 8
B138: 290 | C138: 320 | D138: 9
B139: 300 | C139: 330 | D139: 10
B140: 310 | C140: 340 | D140: 11
B141: 320 | C141: 350 | D141: 12
B142: 330 | C142: 360 | D142: 13
B143: 340 | C143: 370 | D143: 14
B144: 350 | C144: 380 | D144: 15
B145: 360 | C145: 390 | D145: 16
B146: 370 | C146: 400 | D146: 17
B147: 380 | C147: 410 | D147: 18
B148: 390 | C148: 420 | D148: 19
B149: 400 | C149: 430 | D149: 20
B150: 100 | C150: 100 | D150: 20
B152: TEST N°6 : TEST NAVETTE
B153: BARÈME DE PERFORMANCE (palier)
B154: Filles | C154: Garçons | D154: Points
B155: - | C155: - | D155: 1
B156: - | C156: - | D156: 2
B157: - | C157: - | D157: 3
B158: - | C158: - | D158: 4
B159: - | C159: - | D159: 5
B160: 7 | C160: 8 | D160: 6
B161: 7.5 | C161: 8.5 | D161: 7
B162: 8 | C162: 9 | D162: 8
B163: 8.5 | C163: 9.5 | D163: 9
B164: 9 | C164: 10 | D164: 10
B165: 9.5 | C165: 10.5 | D165: 11
B166: 10 | C166: 11 | D166: 12
B167: 10.5 | C167: 11.5 | D167: 13
B168: 11 | C168: 12 | D168: 14
B169: 11.5 | C169: 12.5 | D169: 15
B170: 12 | C170: 13 | D170: 16
B171: 12.5 | C171: 13.5 | D171: 17
B172: 13 | C172: 14 | D172: 18
B173: 13.5 | C173: 14.5 | D173: 19
B174: 14 | C174: 15 | D174: 20
B175: 20 | C175: 20 | D175: 20
